bitfinex/quotes_BTCUSD_20250313
["timestamp","ask_amount","ask_price","bid_price","bid_amount"]
[1741894902400,0.0003376,80685.0,80684.0,0.27481485]
[1741894903093,0.02332801,80685.0,80684.0,0.27481485]
[1741894903941,0.24788,80684.0,80678.0,0.01454085]
[1741894904134,0.260289,80680.0,80677.0,0.0784]
[1741894904341,0.012394,80681.0,80654.0,0.0001688]
[1741894904342,0.012394,80678.0,80665.0,0.012396]
[1741894904575,0.03712963,80681.0,80672.0,0.012395]
[1741894904731,0.012394,80681.0,80672.0,0.012395]
[1741894904934,0.012394,80681.0,80673.0,0.0799]
[1741894905133,0.247889,80682.0,80677.0,0.012395]
[1741894905603,0.0003376,80685.0,80681.0,0.247888]
[1741894905802,0.0003376,80685.0,80679.0,0.012394]
[1741894906018,0.2606096,80685.0,80679.0,0.012394]
[1741894906222,0.0003376,80685.0,80682.0,0.012394]
[1741894906430,0.0003376,80685.0,80679.0,0.012394]
[1741894906661,0.0127306,80685.0,80679.0,0.012394]
[1741894906868,0.2606106,80685.0,80679.0,0.012394]
[1741894907087,0.247884,80683.0,80677.0,0.260295]
[1741894907305,0.247884,80683.0,80679.0,0.001]
[1741894907519,0.0127306,80685.0,80679.0,0.261288]
[1741894907977,0.260274,80684.0,80679.0,0.013394]
[1741894908187,0.0003376,80685.0,80681.0,0.26028]
[1741894908396,0.0003376,80685.0,80682.0,0.260278]
[1741894909103,0.0003376,80685.0,80683.0,0.260275]
[1741894909578,0.0003376,80685.0,80682.0,0.012394]
[1741894909823,0.0003376,80685.0,80683.0,0.247883]
[1741894910050,0.0003376,80685.0,80681.0,0.260283]
[1741894910506,0.0003376,80685.0,80682.0,0.260278]
[1741894910644,0.0003376,80685.0,80683.0,0.001]
[1741894911505,0.0003376,80685.0,80683.0,0.248881]
[1741894911693,0.0003376,80685.0,80683.0,0.001]
[1741894912674,0.247904,80677.0,80664.0,0.0001688]
[1741894912870,0.260301,80676.0,80670.0,0.24792]
[1741894913438,0.00562586,80675.0,80672.0,0.247915]
[1741894913675,0.00562586,80675.0,80672.0,0.26031]
[1741894913923,0.25353586,80675.0,80671.0,0.012396]
[1741894914109,0.00562586,80675.0,80671.0,0.012396]
[1741894914394,0.247911,80674.0,80670.0,0.001]
[1741894914599,0.012395,80675.0,80670.0,0.001]
[1741894914848,0.260293,80678.0,80670.0,0.261317]
[1741894915089,0.01514927,80677.0,80672.0,0.247916]
[1741894915340,0.247911,80674.0,80670.0,0.261317]
[1741894915659,0.560316,80671.0,80670.0,0.001]
[1741894915903,0.260335,80665.0,80657.0,0.0796]
[1741894919914,0.00561499,80672.0,80671.0,0.012396]
[1741894920571,0.00561499,80672.0,80671.0,0.10543685]
[1741894920782,0.0252734,80684.0,80679.0,0.012394]
[1741894921237,0.0003376,80685.0,80684.0,0.260274]
[1741894921451,0.0003376,80685.0,80684.0,0.012394]
[1741894921665,0.0003376,80685.0,80681.0,0.01454085]
[1741894921876,0.0003376,80685.0,80680.0,0.0488]
[1741894922090,0.24788,80684.0,80680.0,0.0488]
[1741894922309,0.247904,80677.0,80669.0,0.247923]
[1741894922526,0.012394,80683.0,80674.0,0.012395]
[1741894922729,0.247883,80683.0,80678.0,0.247898]
[1741894922954,0.247883,80683.0,80677.0,0.012395]
[1741894923203,0.247889,80681.0,80675.0,0.247905]
[1741894923415,0.260283,80682.0,80675.0,0.2603]
[1741894923620,0.247893,80680.0,80675.0,0.012395]
[1741894923826,0.005,80674.0,80668.0,0.012396]
[1741894924033,0.005,80674.0,80673.0,0.247911]
[1741894924240,0.005,80674.0,80673.0,0.260306]
[1741894924445,0.005,80674.0,80665.0,0.260334]
[1741894924847,0.005,80674.0,80662.0,0.260343]
[1741894925091,0.02456197,80687.0,80684.0,0.012394]
[1741894925310,0.00012474,80688.0,80684.0,0.260274]
[1741894925767,0.00012474,80688.0,80684.0,0.2249244]
[1741894925985,0.00012474,80688.0,80684.0,0.0012392]
[1741894926200,0.00012474,80688.0,80678.0,0.01454085]
[1741894926419,0.0127306,80685.0,80672.0,0.14852]
[1741894926633,0.24788,80684.0,80673.0,0.02693585]
[1741894926835,0.25310553,80684.0,80675.0,0.01454085]
[1741894927067,0.005,80682.0,80674.0,0.0819]
[1741894927288,0.005,80674.0,80665.0,0.0819]
[1741894927514,0.005,80660.0,80658.0,0.0819]
[1741894927722,0.005,80660.0,80648.0,0.0829]
[1741894927723,0.055,80660.0,80648.0,0.0829]
[1741894927943,0.3,80661.0,80660.0,0.012397]
[1741894928157,0.05522782,80659.0,80651.0,0.247979]
[1741894928373,0.05,80659.0,80653.0,0.260371]
[1741894928591,0.055,80660.0,80652.0,0.260374]
[1741894928811,0.247973,80654.0,80648.0,0.0829]
[1741894929029,0.05,80655.0,80652.0,9.781e-05]
[1741894929246,0.06020863,80653.0,80652.0,9.781e-05]
[1741894929458,0.055,80653.0,80652.0,9.781e-05]
[1741894929863,0.06020863,80653.0,80652.0,9.781e-05]
[1741894930007,0.36020863,80653.0,80652.0,9.781e-05]
[1741894930645,0.31020863,80653.0,80652.0,9.781e-05]
[1741894930862,0.36020863,80653.0,80652.0,9.781e-05]
[1741894931704,0.35520863,80653.0,80652.0,9.781e-05]
[1741894931870,0.35520863,80653.0,80652.0,0.00309781]
[1741894932110,0.62058163,80653.0,80652.0,0.00309781]
[1741894932294,0.367398,80653.0,80652.0,0.00309781]
[1741894932488,0.36017687,80653.0,80652.0,0.00309781]
[1741894932687,0.36017687,80653.0,80652.0,9.781e-05]
[1741894933460,0.38323654,80653.0,80652.0,0.00309781]
[1741894933661,0.39563454,80653.0,80652.0,0.00309781]
[1741894934110,0.38323654,80653.0,80652.0,0.00309781]
[1741894934903,0.38323654,80653.0,80652.0,9.781e-05]
[1741894935104,0.38323654,80653.0,80652.0,0.00209781]
[1741894935890,0.02823654,80653.0,80652.0,0.00226681]
[1741894936095,0.02823654,80653.0,80652.0,0.01466481]
[1741894936302,0.02305967,80653.0,80652.0,0.01466481]
[1741894937030,0.02305967,80653.0,80652.0,0.00226681]
[1741894937229,0.33853983,80653.0,80652.0,0.00226681]
[1741894937478,0.34353983,80653.0,80652.0,0.00226681]
[1741894938091,0.32048016,80653.0,80652.0,0.00226681]
[1741894938669,0.30808216,80653.0,80652.0,0.00226681]
[1741894938878,0.62048016,80653.0,80652.0,0.00226681]
[1741894939606,0.37250516,80653.0,80652.0,0.00226681]
[1741894941019,0.005,80623.0,80621.0,0.248071]
[1741894941224,0.310439,80633.0,80621.0,0.248071]
[1741894941225,0.005,80625.0,80622.0,0.012403]
[1741894941430,0.005,80628.0,80624.0,0.260466]
[1741894941628,0.005,80628.0,80621.0,0.248071]
[1741894941836,0.260479,80621.0,80619.0,0.0001689]
[1741894942181,0.3724682,80620.0,80619.0,0.0001689]
[1741894942396,0.3724682,80620.0,80619.0,0.00058442]
[1741894943057,0.3917683,80620.0,80619.0,0.00058442]
[1741894943702,0.3927683,80620.0,80619.0,0.00058442]
[1741894943906,0.3917683,80620.0,80619.0,0.00058442]
[1741894945227,0.3927683,80620.0,80619.0,0.00058442]
[1741894946361,0.1622653,80620.0,80619.0,0.00058442]
[1741894946554,0.067404,80618.0,80617.0,3.2e-07]
[1741894947013,0.07325094,80618.0,80617.0,3.2e-07]
[1741894947222,0.19321183,80618.0,80617.0,3.2e-07]
[1741894947434,0.22764032,80618.0,80617.0,3.2e-07]
[1741894948301,0.52764032,80618.0,80617.0,3.2e-07]
[1741894949155,0.40767943,80618.0,80617.0,3.2e-07]
[1741894950898,0.41267943,80618.0,80617.0,3.2e-07]
[1741894951150,0.389727,80618.0,80617.0,3.2e-07]
[1741894951344,0.40762759,80618.0,80617.0,3.2e-07]
[1741894951559,0.41262759,80618.0,80617.0,3.2e-07]
[1741894951767,0.55770759,80618.0,80617.0,3.2e-07]
[1741894951982,0.56270759,80618.0,80617.0,3.2e-07]
[1741894952399,0.51270759,80618.0,80617.0,3.2e-07]
[1741894952609,0.10762759,80618.0,80617.0,3.2e-07]
[1741894952828,0.11262759,80618.0,80617.0,3.2e-07]
[1741894953034,0.41262759,80618.0,80617.0,3.2e-07]
[1741894953466,0.40115153,80618.0,80617.0,3.2e-07]
[1741894953707,0.35115153,80618.0,80617.0,3.2e-07]
[1741894953915,0.40115153,80618.0,80617.0,3.2e-07]
[1741894954324,0.39615153,80618.0,80617.0,3.2e-07]
[1741894955819,0.39915153,80618.0,80617.0,3.2e-07]
[1741894956084,0.41060845,80618.0,80617.0,3.2e-07]
[1741894956534,0.5492433,80618.0,80617.0,3.2e-07]
[1741894956964,0.5865533,80618.0,80617.0,3.2e-07]
[1741894957391,0.56851845,80618.0,80617.0,3.2e-07]
[1741894957604,0.56551845,80618.0,80617.0,3.2e-07]
[1741894957831,0.615522,80607.0,80606.0,0.07217069]
[1741894958267,0.6213031,80607.0,80606.0,0.07217069]
[1741894958913,0.68089429,80607.0,80606.0,0.07217069]
[1741894959357,0.69235121,80607.0,80606.0,0.07217069]
[1741894959567,0.69235121,80607.0,80605.0,1e-08]
[1741894959568,0.367406,80606.0,80605.0,1e-08]
[1741894959986,0.37461487,80606.0,80605.0,1e-08]
[1741894961069,0.50603268,80606.0,80605.0,1e-08]
[1741894961338,0.50603268,80606.0,80571.0,0.000169]
[1741894961339,0.017411,80572.0,80571.0,0.000169]
[1741894961552,1.556436,80572.0,80571.0,0.000169]
[1741894961761,1.56363081,80572.0,80571.0,0.000169]
[1741894962200,1.58231207,80572.0,80571.0,0.000169]
[1741894962836,1.61708492,80572.0,80571.0,0.000169]
[1741894963271,1.61708492,80572.0,80542.0,0.0498]
[1741894963272,0.2657,80552.0,80542.0,0.0498]
[1741894963484,0.48064986,80552.0,80542.0,0.0498]
[1741894963876,0.48753971,80552.0,80542.0,0.0498]
[1741894964335,0.49899663,80552.0,80544.0,0.012415]
[1741894964515,0.52189722,80552.0,80543.0,0.248313]
[1741894964727,0.10343722,80552.0,80546.0,0.248304]
[1741894964936,0.19400736,80552.0,80549.0,0.012414]
[1741894965145,0.24400736,80552.0,80549.0,0.012414]
[1741894965560,0.24400736,80552.0,80546.0,0.248303]
[1741894965561,0.25516225,80552.0,80544.0,0.260725]
[1741894965771,0.00687625,80552.0,80544.0,0.248311]
[1741894965973,0.00687625,80552.0,80546.0,0.248305]
[1741894966296,0.00601502,80552.0,80548.0,0.012414]
[1741894966727,0.10667017,80552.0,80512.0,0.00541427]
[1741894966930,0.10667017,80552.0,80490.0,0.0051691]
[1741894966931,0.012417,80530.0,80516.0,0.260816]
[1741894967142,0.01242,80515.0,80513.0,0.1263]
[1741894967341,0.12954077,80532.0,80514.0,0.01242]
[1741894967550,0.012418,80527.0,80517.0,0.248394]
[1741894967756,0.12954077,80532.0,80523.0,0.260794]
[1741894967971,0.248345,80533.0,80522.0,0.012418]
[1741894968187,0.248352,80531.0,80523.0,0.00124173]
[1741894968391,0.24837,80525.0,80520.0,0.01454085]
[1741894968845,0.24837,80525.0,80518.0,0.02695985]
[1741894969033,0.248364,80527.0,80520.0,0.01454085]
[1741894969190,0.248364,80527.0,80520.0,0.02695985]
[1741894969390,0.00041483,80532.0,80524.0,0.012418]
[1741894969592,0.00041483,80532.0,80530.0,0.0807]
[1741894969993,0.248351,80531.0,80530.0,0.0807]
[1741894970216,0.00041483,80532.0,80530.0,0.0807]
[1741894971445,0.00041483,80532.0,80531.0,0.02695785]
[1741894972101,0.00041483,80532.0,80531.0,0.19565884]
[1741894972316,0.00041483,80532.0,80531.0,0.19690043]
[1741894972956,0.00041483,80532.0,80531.0,0.19565884]
[1741894973757,0.00041483,80532.0,80531.0,0.19765884]
[1741894974128,0.00041483,80532.0,80531.0,0.19565884]
[1741894974336,0.00141483,80532.0,80531.0,0.19990029]
[1741894974535,0.00141483,80532.0,80531.0,0.49990029]
[1741894974739,0.00141483,80532.0,80531.0,0.49865884]
[1741894976540,0.00141483,80532.0,80531.0,0.19865884]
[1741894977053,0.00141483,80532.0,80531.0,0.07895785]
[1741894977240,0.00041483,80532.0,80531.0,0.07595785]
[1741894977663,0.00041483,80532.0,80531.0,0.08119938]
[1741894978997,0.00041483,80532.0,80531.0,0.004]
[1741894979210,0.00041483,80532.0,80531.0,0.252351]
[1741894979412,0.00632912,80532.0,80531.0,0.264768]
[1741894979616,0.00041483,80532.0,80531.0,0.004]
[1741894980022,0.00041483,80532.0,80530.0,0.260771]
[1741894980176,0.00632912,80532.0,80529.0,0.012417]
[1741894980388,0.00632912,80532.0,80529.0,0.27531485]
[1741894980793,0.00632912,80532.0,80529.0,0.01454085]
[1741894981013,0.00632912,80532.0,80531.0,0.002]
[1741894981376,0.00632912,80532.0,80531.0,0.014417]
[1741894981583,0.00041483,80532.0,80531.0,0.012417]
[1741894982216,0.00632912,80532.0,80531.0,0.012417]
[1741894982414,0.00041483,80532.0,80530.0,0.248353]
[1741894982648,0.00041483,80532.0,80531.0,0.01365867]
[1741894983286,0.00041483,80532.0,80531.0,0.012417]
[1741894983554,0.00041483,80532.0,80531.0,0.14790042]
[1741894983952,0.00041483,80532.0,80531.0,0.14665884]
[1741894984203,0.00041483,80532.0,80531.0,0.012417]
[1741894984423,0.00041483,80532.0,80529.0,0.002]
[1741894984641,0.00041483,80532.0,80531.0,0.260768]
[1741894984975,0.00041483,80532.0,80531.0,0.27530885]
[1741894985386,0.00075323,80532.0,80531.0,0.002]
[1741894985595,0.00075323,80532.0,80531.0,0.262768]
[1741894986214,0.00075323,80532.0,80531.0,0.39700984]
[1741894986425,0.00075323,80532.0,80531.0,0.27730885]
[1741894986626,0.00075323,80532.0,80531.0,0.27530885]
[1741894986831,0.00175323,80532.0,80531.0,0.27730885]
[1741894988193,0.00075323,80532.0,80531.0,0.27530885]
[1741894988631,0.00175323,80532.0,80531.0,0.27730885]
[1741894988839,0.00075323,80532.0,80531.0,0.27530885]
[1741894989177,0.00075323,80532.0,80531.0,0.27730885]
[1741894991356,0.00075323,80532.0,80531.0,0.002]
[1741894991357,0.01317023,80532.0,80531.0,0.002]
[1741894991545,0.01907428,80532.0,80531.0,0.002]
[1741894991819,0.31907428,80532.0,80531.0,0.002]
[1741894992039,0.260768,80531.0,80530.0,0.0001692]
[1741894992473,0.26663203,80531.0,80530.0,0.0001692]
[1741894992654,0.28170332,80531.0,80530.0,0.0001692]
[1741894994572,0.02093532,80531.0,80530.0,0.0001692]
[1741894995387,0.02093532,80531.0,80530.0,0.0021692]
[1741894995700,0.02093532,80531.0,80530.0,0.2505232]
[1741894995993,0.02093532,80531.0,80530.0,0.2629402]
[1741894996259,0.02093532,80531.0,80530.0,0.0021692]
[1741894996431,0.28170332,80531.0,80530.0,0.0021692]
[1741894997523,0.30477116,80531.0,80530.0,0.0021692]
[1741894997734,0.05642016,80531.0,80530.0,0.0021692]
[1741894998161,0.04400316,80531.0,80530.0,0.0021692]
[1741894998373,0.04046765,80531.0,80530.0,0.012417]
[1741894998581,0.03460362,80531.0,80530.0,0.012417]
[1741894998792,0.012415,80543.0,80532.0,0.012417]
[1741894999004,0.012416,80541.0,80533.0,0.0767]
[1741894999224,0.248332,80538.0,80533.0,0.0767]
[1741894999429,0.012416,80537.0,80533.0,0.0767]
[1741894999641,0.248338,80536.0,80533.0,0.0767]
[1741894999848,0.25413039,80537.0,80533.0,0.325045]
[1741895000066,0.012416,80540.0,80533.0,0.089117]
[1741895000268,0.00579539,80536.0,80534.0,0.012417]
[1741895000495,0.02536209,80542.0,80536.0,0.012416]
[1741895000730,0.02536209,80542.0,80541.0,0.24832]
[1741895000923,0.248299,80548.0,80541.0,0.260736]
[1741895001132,0.260713,80548.0,80541.0,0.260736]
[1741895001342,0.012415,80546.0,80538.0,0.260743]
[1741895001603,0.260722,80546.0,80538.0,0.260743]
[1741895001809,0.248298,80549.0,80542.0,0.012415]
[1741895002640,0.02456781,80550.0,80549.0,0.012414]
[1741895002859,0.0003384,80552.0,80551.0,0.012414]
[1741895003070,0.0003384,80552.0,80551.0,0.093714]
[1741895003794,0.0003384,80552.0,80551.0,0.0813]
[1741895004210,0.0003384,80552.0,80545.0,0.012415]
[1741895004413,0.001,80549.0,80545.0,0.260721]
[1741895004636,0.0003384,80552.0,80548.0,0.248298]
[1741895004834,0.0003384,80552.0,80549.0,0.248293]
[1741895005072,0.0003384,80552.0,80547.0,0.012415]
[1741895005511,0.0003384,80552.0,80549.0,0.012414]
[1741895005716,0.0003384,80552.0,80551.0,0.248289]
[1741895005922,0.0003384,80552.0,80551.0,0.260703]
[1741895006862,0.0003384,80552.0,80551.0,0.27524385]
[1741895006993,0.0003384,80552.0,80551.0,0.39494484]
[1741895008437,0.0003384,80552.0,80551.0,0.46994484]
[1741895008823,0.0003384,80552.0,80551.0,0.47094484]
[1741895009431,0.0003384,80552.0,80551.0,0.48569807]
[1741895010704,0.0003384,80552.0,80551.0,0.78569807]
[1741895010914,0.0003384,80552.0,80551.0,0.79069807]
[1741895010915,4e-07,80552.0,80551.0,0.79069807]
[1741895011539,4e-07,80552.0,80551.0,0.78969807]
[1741895011963,4e-07,80552.0,80551.0,0.79069807]
[1741895012179,4e-07,80552.0,80551.0,0.78969807]
[1741895012375,4e-07,80552.0,80551.0,0.77015722]
[1741895012610,0.0010004,80552.0,80551.0,0.91040399]
[1741895012835,4e-07,80552.0,80551.0,0.90940399]
[1741895013066,4e-07,80552.0,80551.0,0.92394484]
[1741895013508,4e-07,80552.0,80551.0,0.93911523]
[1741895013740,4e-07,80552.0,80551.0,0.35087339]
[1741895013968,4e-07,80552.0,80551.0,0.335703]
[1741895014269,0.00538457,80552.0,80551.0,0.335703]
[1741895014485,4e-07,80552.0,80551.0,0.28124385]
[1741895014739,4e-07,80552.0,80551.0,0.27524385]
[1741895014975,4e-07,80552.0,80551.0,0.28124385]
[1741895015250,4e-07,80552.0,80551.0,0.27524385]
[1741895015713,4e-07,80552.0,80551.0,0.27824385]
[1741895015954,4e-07,80552.0,80551.0,0.003]
[1741895016225,0.2607004,80552.0,80551.0,0.003]
[1741895016482,0.28552382,80552.0,80551.0,0.003]
[1741895016729,0.26605072,80552.0,80551.0,0.003]
[1741895017418,0.260742,80540.0,80534.0,0.260756]
[1741895017596,0.260739,80541.0,80536.0,0.012416]
[1741895017980,0.00535032,80540.0,80536.0,0.012416]
[1741895018782,0.00535032,80540.0,80536.0,0.265749]
[1741895018981,0.248327,80539.0,80536.0,0.005]
[1741895019189,0.26609332,80539.0,80536.0,0.005]
[1741895019650,0.012417,80534.0,80521.0,0.01454085]
[1741895019821,0.260768,80531.0,80520.0,0.0001692]
[1741895020257,0.56611832,80531.0,80520.0,0.0001692]
[1741895020486,0.77749291,80531.0,80530.0,7.5e-07]
[1741895020703,0.75749291,80531.0,80530.0,7.5e-07]
[1741895021150,0.75749291,80531.0,80520.0,0.0001692]
[1741895021151,0.560801,80521.0,80520.0,0.0001692]
[1741895021618,0.71987472,80521.0,80520.0,0.0001692]
[1741895022098,0.00507372,80521.0,80520.0,0.0001692]
[1741895022533,0.002,80521.0,80520.0,0.0001692]
[1741895022745,0.01947136,80521.0,80520.0,0.0001692]
[1741895022955,0.012419,80521.0,80520.0,0.0001692]
[1741895023163,0.01747136,80521.0,80520.0,0.0001692]
[1741895023373,0.00505236,80521.0,80520.0,0.0001692]
[1741895023613,0.248372,80525.0,80520.0,0.0001692]
[1741895023821,0.248365,80527.0,80521.0,0.012419]
[1741895024033,0.248376,80524.0,80520.0,0.0001692]
[1741895024242,0.012418,80522.0,80520.0,0.0001692]
[1741895024448,0.012419,80521.0,80520.0,0.0001692]
[1741895025243,0.012419,80521.0,80520.0,0.0021692]
[1741895025682,0.248382,80522.0,80520.0,0.0001692]
[1741895025846,0.24837,80525.0,80520.0,0.0011692]
[1741895026072,0.012419,80521.0,80520.0,0.0011692]
[1741895026445,0.248376,80523.0,80520.0,0.0011692]
[1741895026653,0.24837,80525.0,80520.0,0.0001692]
[1741895026939,0.24837,80525.0,80520.0,0.0011692]
[1741895027284,0.248378,80523.0,80520.0,0.0011692]
[1741895027514,0.24835,80532.0,80523.0,0.012418]
[1741895027722,0.24835,80532.0,80524.0,0.00124171]
[1741895027723,0.00012439,80531.0,80524.0,0.00124171]
[1741895027943,0.248357,80530.0,80522.0,0.012418]
[1741895028103,0.260774,80530.0,80522.0,0.012418]
[1741895028511,0.260777,80529.0,80521.0,0.260801]
[1741895028882,0.260778,80528.0,80522.0,0.260797]
[1741895029044,0.24836,80528.0,80522.0,0.260797]
[1741895029257,0.248366,80527.0,80522.0,0.001]
[1741895029516,0.248375,80524.0,80522.0,0.001]
[1741895030040,0.012418,80523.0,80522.0,0.001]
[1741895030242,0.248375,80524.0,80520.0,0.0001692]
[1741895030456,0.260784,80526.0,80520.0,0.0001692]
[1741895030664,0.248372,80525.0,80520.0,0.0001692]
[1741895031326,0.248376,80523.0,80520.0,0.0001692]
[1741895031550,0.260794,80523.0,80521.0,0.001]
[1741895031904,0.248373,80524.0,80520.0,0.0001692]
[1741895032172,0.248382,80521.0,80520.0,0.0021692]
[1741895032376,0.260801,80521.0,80520.0,0.0021692]
[1741895032579,0.260801,80521.0,80520.0,0.0001692]
[1741895032790,0.00506689,80521.0,80520.0,0.0001692]
[1741895033236,0.26586789,80521.0,80520.0,0.0001692]
[1741895033456,0.26586789,80521.0,80520.0,0.0011692]
[1741895034686,0.26586789,80521.0,80520.0,0.0001692]
[1741895035699,0.26586789,80521.0,80520.0,0.0021692]
[1741895036455,0.00506689,80521.0,80520.0,0.0021692]
[1741895036672,0.00506689,80521.0,80520.0,0.2629732]
[1741895036923,0.012418,80526.0,80520.0,0.0021692]
[1741895037135,0.26586789,80521.0,80520.0,0.0021692]
[1741895037347,0.248379,80522.0,80520.0,0.0021692]
[1741895037553,0.00506689,80521.0,80520.0,0.0021692]
[1741895038836,0.260796,80523.0,80520.0,0.0021692]
[1741895039040,0.00506689,80521.0,80520.0,0.0021692]
[1741895039249,0.248378,80523.0,80520.0,0.0021692]
[1741895039655,0.00506689,80522.0,80520.0,0.0145882]
[1741895039876,0.00506689,80522.0,80521.0,0.012419]
[1741895040094,0.7891384,80530.0,80525.0,0.012418]
[1741895040300,0.00505913,80529.0,80525.0,0.012418]
[1741895040531,0.00505913,80529.0,80525.0,0.260785]
[1741895041087,0.00505913,80529.0,80526.0,0.012418]
[1741895041304,0.00505913,80529.0,80523.0,0.248375]
[1741895041505,0.00505913,80529.0,80524.0,0.248373]
[1741895041702,0.00505913,80529.0,80526.0,0.012418]
[1741895044708,0.260722,80546.0,80538.0,0.012416]
[1741895044885,0.012415,80545.0,80539.0,0.011416]
[1741895045145,0.248299,80548.0,80540.0,0.012416]
[1741895045368,0.78430279,80551.0,80549.0,0.012414]
[1741895045584,0.78430279,80551.0,80550.0,0.260706]
[1741895046240,4e-07,80552.0,80551.0,0.012414]
[1741895047473,0.260703,80551.0,80545.0,0.260723]
[1741895047685,4e-07,80552.0,80550.0,0.260706]
[1741895047888,4e-07,80552.0,80551.0,0.012414]
[1741895049494,4e-07,80552.0,80545.0,0.260723]
[1741895049955,0.0124144,80552.0,80545.0,0.260723]
[1741895050151,0.2482894,80552.0,80547.0,0.2483]
[1741895050355,0.2482894,80552.0,80539.0,0.165976]
[1741895050356,0.248299,80548.0,80539.0,0.165976]
[1741895050596,0.012414,80551.0,80541.0,0.012416]
[1741895050826,0.248297,80549.0,80544.0,0.012415]
[1741895051057,0.248301,80548.0,80543.0,0.248312]
[1741895051286,0.248293,80550.0,80545.0,0.012415]
[1741895051488,0.248295,80550.0,80545.0,0.26072]
[1741895051671,0.260713,80549.0,80542.0,0.012415]
[1741895051869,0.260713,80549.0,80542.0,0.26073]
[1741895052108,0.24829,80551.0,80546.0,0.248303]
[1741895052523,0.248294,80550.0,80545.0,0.012415]
[1741895052734,4e-07,80552.0,80551.0,0.012414]
[1741895052927,4e-07,80552.0,80551.0,0.260703]
[1741895054642,4e-07,80552.0,80551.0,0.262703]
[1741895056551,4e-07,80552.0,80551.0,0.27724385]
[1741895058614,4e-07,80552.0,80551.0,0.002]
[1741895058829,0.2482864,80552.0,80551.0,0.002]
[1741895059034,0.2536333,80552.0,80551.0,0.002]
[1741895059454,0.0053473,80552.0,80551.0,0.002]
[1741895060342,0.0053473,80552.0,80551.0,0.262703]
[1741895060557,0.0053473,80552.0,80551.0,0.002]
[1741895060773,4e-07,80552.0,80551.0,0.002]
[1741895060961,0.00529668,80552.0,80551.0,0.002]
[1741895061107,4e-07,80552.0,80551.0,0.014414]
[1741895061335,4e-07,80552.0,80551.0,0.002]
[1741895061541,0.00529668,80552.0,80551.0,0.002]
[1741895061742,0.26599668,80552.0,80551.0,0.002]
[1741895062151,0.25358268,80552.0,80551.0,0.002]
[1741895062354,0.00529668,80552.0,80551.0,0.002]
[1741895064217,0.00529668,80552.0,80551.0,0.262703]
[1741895064381,4e-07,80552.0,80551.0,0.262703]
[1741895065208,0.00529,80552.0,80551.0,0.262703]
[1741895065989,0.00529,80552.0,80551.0,0.002]
[1741895066534,0.017704,80552.0,80551.0,0.002]
[1741895066780,0.00529,80552.0,80551.0,0.002]
[1741895068303,0.017704,80552.0,80551.0,0.002]
[1741895069709,0.317704,80552.0,80551.0,0.002]
[1741895069911,0.32695114,80552.0,80551.0,0.002]
[1741895070114,0.3524667,80552.0,80551.0,0.002]
[1741895070312,0.560739,80540.0,80539.0,0.0001692]
[1741895070690,0.56603357,80540.0,80539.0,0.0001692]
[1741895071372,0.56603357,80540.0,80539.0,2e-07]
[1741895071373,0.64373357,80540.0,80539.0,2e-07]
[1741895073359,1.05110157,80540.0,80539.0,2e-07]
[1741895073753,1.05110157,80540.0,80525.0,0.0001692]
[1741895073754,0.560784,80526.0,80525.0,0.0001692]
[1741895073963,0.713464,80526.0,80525.0,0.0001692]
[1741895074162,0.560801,80521.0,80520.0,0.0001692]
[1741895074370,0.560801,80521.0,80520.0,0.00058403]
[1741895074571,0.638501,80521.0,80520.0,0.00058403]
[1741895074788,0.64358117,80521.0,80520.0,0.00058403]
[1741895075194,0.58032593,80521.0,80520.0,0.00058403]
[1741895075575,0.60553734,80521.0,80520.0,0.00058403]
[1741895078336,0.61681411,80521.0,80520.0,0.00058403]
[1741895078703,0.61481411,80521.0,80520.0,0.00058403]
[1741895079109,0.61781411,80521.0,80520.0,0.00058403]
[1741895079311,0.77013411,80521.0,80520.0,0.00058403]
[1741895080306,0.76713411,80521.0,80520.0,0.00058403]
[1741895081668,0.76913411,80521.0,80520.0,0.00058403]
[1741895082913,1.55801411,80521.0,80520.0,0.00058403]
[1741895083128,1.55601411,80521.0,80520.0,0.00058403]
[1741895083379,1.55801411,80521.0,80520.0,0.00058403]
[1741895083541,1.0680637,80521.0,80520.0,0.00058403]
[1741895083780,1.07120593,80521.0,80520.0,0.00058403]
[1741895084323,0.79596017,80521.0,80520.0,0.24896903]
[1741895084498,0.00708017,80521.0,80520.0,0.26138803]
[1741895084937,0.01485012,80531.0,80526.0,0.248365]
[1741895085165,0.02726712,80531.0,80526.0,0.248365]
[1741895085385,0.00500014,80530.0,80526.0,0.248365]
[1741895085614,0.25335614,80530.0,80525.0,0.012418]
[1741895085833,0.00500014,80530.0,80526.0,0.260784]
[1741895086270,0.01478593,80531.0,80526.0,0.260784]
[1741895086444,0.00501844,80529.0,80527.0,0.248361]
[1741895086585,0.260765,80533.0,80527.0,0.248361]
[1741895086791,0.26076,80534.0,80528.0,0.260776]
[1741895087003,0.260769,80531.0,80526.0,0.012418]
[1741895087204,0.260769,80531.0,80526.0,0.260782]
[1741895087434,0.24835,80532.0,80527.0,0.088818]
[1741895087634,0.27512976,80533.0,80527.0,0.088818]
[1741895087862,0.27512976,80533.0,80529.0,0.248357]
[1741895088067,0.002,80530.0,80527.0,0.337179]
[1741895088276,0.24835,80532.0,80527.0,0.337179]
[1741895088479,0.26271276,80533.0,80528.0,0.248358]
[1741895088702,0.002,80532.0,80528.0,0.260776]
[1741895088917,0.26271276,80533.0,80528.0,0.260776]
[1741895089343,0.002,80530.0,80528.0,0.260776]
[1741895089564,0.27513076,80533.0,80528.0,0.012418]
[1741895089817,0.002,80532.0,80528.0,0.012418]
[1741895089990,0.248348,80533.0,80527.0,0.337181]
[1741895090191,0.25481473,80534.0,80527.0,0.337181]
[1741895090579,0.02443303,80535.0,80533.0,0.260762]
[1741895090771,0.260722,80546.0,80538.0,0.260745]
[1741895090983,0.260722,80546.0,80530.0,0.060017]
[1741895090984,0.012416,80539.0,80531.0,0.260767]
[1741895091634,0.3,80526.0,80515.0,0.260819]
[1741895091806,0.248381,80522.0,80515.0,0.248399]
[1741895092190,0.3,80526.0,80522.0,0.012418]
[1741895092601,0.0144368,80539.0,80531.0,0.012417]
[1741895092810,0.260752,80537.0,80529.0,0.012417]
[1741895093015,0.012416,80536.0,80528.0,0.012418]
[1741895093226,0.00508622,80536.0,80529.0,0.012417]